bitfinex/quotes_SOLUSD_20250529
["timestamp","ask_amount","ask_price","bid_price","bid_amount"]
[1748509654652,0.14216157,172.75,172.73,12.4193192]
[1748509657579,5.78877098,172.75,172.73,12.4193192]
[1748509657856,5.93093255,172.75,172.74,12.4193192]
[1748509658153,0.14216157,172.75,172.74,12.4193192]
[1748509659065,153.088038,172.78,172.75,0.14216157]
[1748509659359,153.088038,172.78,172.72,36.18]
[1748509659360,147.3,172.78,172.77,12.4193192]
[1748509659852,147.3,172.78,172.77,12.56148077]
[1748509660056,5.78611047,172.83,172.78,0.14216157]
[1748509660351,0.14216157,172.82,172.81,0.14216157]
[1748509661226,5.78611047,172.83,172.8,0.14216157]
[1748509661437,5.92886372,172.81,172.8,0.14216157]
[1748509661860,0.14216157,172.8,172.79,0.14216157]
[1748509662747,0.14216157,172.8,172.78,0.14216157]
[1748509663573,0.14216157,172.8,172.79,0.14216157]
[1748509664068,5.9291986,172.8,172.79,0.14216157]
[1748509666161,0.14216157,172.79,172.76,0.14216157]
[1748509666380,5.92953352,172.79,172.78,12.4193192]
[1748509667253,156.92,172.85,172.79,0.28432314]
[1748509667628,153.08545601,172.85,172.84,0.14216157]
[1748509667748,153.22761758,172.85,172.84,0.14216157]
[1748509667950,153.08545601,172.85,172.84,0.14216157]
[1748509668152,153.22761758,172.85,172.84,0.14216157]
[1748509668578,147.44216157,172.85,172.84,0.14216157]
[1748509668751,5.78505947,172.86,172.8,0.28432314]
[1748509668956,5.92722104,172.86,172.85,0.14216157]
[1748509669197,0.14216157,172.86,172.85,0.14216157]
[1748509669355,5.78443517,172.88,172.85,12.4193192]
[1748509669558,0.14216157,172.87,172.85,12.4193192]
[1748509669777,0.14216157,172.87,172.85,0.14216157]
[1748509670170,0.14216157,172.87,172.85,12.4193192]
[1748509670886,0.14216157,172.86,172.85,12.4193192]
[1748509671270,0.14216157,172.86,172.85,0.14216157]
[1748509671515,153.08411235,172.89,172.85,12.4193192]
[1748509671709,0.14216157,172.88,172.87,0.14216157]
[1748509672379,5.92652066,172.88,172.87,0.14216157]
[1748509673487,31.92652066,172.88,172.86,0.14216157]
[1748509674295,44.20367829,172.88,172.85,0.14216157]
[1748509675480,0.14216157,172.86,172.84,0.14216157]
[1748509678091,5.78536303,172.85,172.84,0.14216157]
[1748509680190,31.9275246,172.85,172.84,0.14216157]
[1748509680385,0.14216157,172.81,172.78,0.14216157]
[1748509680700,38.4193192,172.81,172.78,0.14216157]
[1748509680871,38.4193192,172.81,172.77,0.14216157]
[1748509681786,26.14216157,172.81,172.77,12.4193192]
[1748509681990,26.14216157,172.81,172.72,13.76304855]
[1748509681991,26.0,172.75,172.72,12.27715763]
[1748509682187,26.0,172.74,172.73,0.14216157]
[1748509682387,31.78904712,172.74,172.73,0.14216157]
[1748509683098,31.78904712,172.74,172.72,0.14216157]
[1748509685208,5.7880419,172.77,172.72,12.70364234]
[1748509685394,5.7880419,172.77,172.74,0.14216157]
[1748509689709,18.06519953,172.77,172.72,12.70364234]
[1748509690183,18.06519953,172.77,172.72,48.84364234]
[1748509690782,0.14216157,172.76,172.72,12.4193192]
[1748509691206,12.27715763,172.75,172.72,0.14216157]
[1748509692225,12.27715763,172.74,172.7,36.28216157]
[1748509692795,5.78938227,172.73,172.7,36.28216157]
[1748509693099,5.78938227,172.73,172.7,48.5593192]
[1748509694016,5.78904712,172.74,172.7,48.5593192]
[1748509694403,5.78904712,172.74,172.7,12.4193192]
[1748509695293,18.06620475,172.74,172.7,0.28432314]
[1748509696792,5.78904712,172.74,172.7,0.28432314]
[1748509697123,0.14216157,172.73,172.7,0.14216157]
[1748509697297,5.78971746,172.72,172.7,0.14216157]
[1748509698017,5.78971746,172.72,172.69,0.28432314]
[1748509698400,5.78971746,172.72,172.69,12.56148077]
[1748509699889,26.0,172.7,172.69,12.56148077]
[1748509700096,31.93160463,172.73,172.69,12.56148077]
[1748509700316,44.20876226,172.73,172.69,0.28432314]
[1748509701590,5.93160463,172.73,172.69,0.28432314]
[1748509701813,18.20876226,172.73,172.69,0.28432314]
[1748509703592,18.20876226,172.73,172.69,0.14216157]
[1748509704309,12.27715763,172.72,172.69,0.14216157]
[1748509705702,5.79005268,172.71,172.69,0.14216157]
[1748509708232,12.27715763,172.76,172.71,0.14216157]
[1748509708529,0.14216157,172.75,172.73,0.14216157]
[1748509710095,5.93092497,172.75,172.73,0.14216157]
[1748509710912,5.93092497,172.75,172.72,0.14216157]
[1748509714814,18.2080826,172.75,172.7,12.70364234]
[1748509715016,18.2080826,172.75,172.7,0.42648471]
[1748509715321,18.2080826,172.75,172.7,12.70364234]
[1748509715534,5.93092497,172.75,172.72,0.14216157]
[1748509716429,5.7880419,172.77,172.72,0.28432314]
[1748509716725,12.4193192,172.76,172.73,0.14216157]
[1748509717409,12.4193192,172.76,172.72,0.14216157]
[1748509717609,20.25814666,172.77,172.72,0.14216157]
[1748509717610,0.14216157,172.74,172.72,0.14216157]
[1748509717841,0.14216157,172.73,172.72,0.14216157]
[1748509718049,0.14216157,172.73,172.69,12.4193192]
[1748509718203,0.14216157,172.74,172.71,0.14216157]
[1748509718400,0.14216157,172.74,172.71,12.4193192]
[1748509718654,5.78737195,172.79,172.74,0.14216157]
[1748509718831,18.06452958,172.79,172.74,0.14216157]
[1748509719149,12.27715763,172.78,172.73,48.5393192]
[1748509719444,0.14216157,172.77,172.73,48.5393192]
[1748509720929,5.93025768,172.77,172.73,48.5393192]
[1748509722016,5.93025768,172.77,172.75,0.14216157]
[1748509722621,5.93025768,172.77,172.74,12.27715763]
[1748509722622,5.93025768,172.77,172.74,0.14216157]
[1748509723317,18.20741531,172.77,172.73,36.26216157]
[1748509729633,5.93025768,172.77,172.73,48.5393192]
[1748509729943,5.93025768,172.77,172.75,0.14216157]
[1748509730628,18.20741531,172.77,172.74,0.14216157]
[1748509732045,5.93025768,172.77,172.74,0.14216157]
[1748509732230,18.20741531,172.77,172.74,0.14216157]
[1748509732852,5.93025768,172.77,172.74,0.14216157]
[1748509735060,18.20741531,172.77,172.74,0.14216157]
[1748509738131,0.14216157,172.75,172.73,0.14216157]
[1748509738888,5.93105896,172.75,172.73,0.14216157]
[1748509740726,147.3,172.81,172.75,0.28432314]
[1748509740938,147.3,172.81,172.77,12.4193192]
[1748509741147,0.14216157,172.8,172.79,0.14216157]
[1748509741527,147.3,172.81,172.79,0.14216157]
[1748509741763,5.7864015,172.82,172.78,12.4193192]
[1748509742257,0.14216157,172.81,172.78,12.4193192]
[1748509742825,31.7864015,172.82,172.78,12.4193192]
[1748509743031,31.7864015,172.82,172.76,9.86432314]
[1748509743032,31.7864015,172.82,172.8,0.14216157]
[1748509743255,0.14216157,172.81,172.8,0.14216157]
[1748509744444,26.0,172.82,172.8,12.4193192]
[1748509745035,31.78645712,172.82,172.8,12.4193192]
[1748509745539,31.78645712,172.82,172.8,0.14216157]
[1748509746546,31.78645712,172.82,172.77,1.5684]
[1748509746547,18.20602135,172.81,172.77,0.14216157]
[1748509746746,0.14216157,172.79,172.77,0.14216157]
[1748509748574,5.9296146,172.79,172.77,12.4193192]
[1748509750268,52.74332939,172.82,172.77,12.4193192]
[1748509750269,5.92923988,172.8,172.79,0.14216157]
[1748509753765,38.27715763,172.84,172.79,12.4193192]
[1748509754071,0.14216157,172.82,172.81,0.14216157]
[1748509754445,0.14216157,172.82,172.81,12.4193192]
[1748509755368,0.14216157,172.82,172.81,0.14216157]
[1748509755869,5.92854179,172.82,172.77,0.42648471]
[1748509756062,5.92854179,172.82,172.81,0.14216157]
[1748509756749,0.14216157,172.82,172.81,0.14216157]
[1748509757151,0.14216157,172.82,172.8,0.14216157]
[1748509758162,5.92857593,172.82,172.8,0.14216157]
[1748509760564,147.3,172.83,172.8,12.4193192]
[1748509760972,153.0860786,172.83,172.8,12.4193192]
[1748509762278,153.22824017,172.83,172.82,0.14216157]
[1748509763273,5.78569979,172.84,172.82,12.27715763]
[1748509763584,5.78569979,172.84,172.83,0.14216157]
[1748509763782,5.92786136,172.84,172.83,0.14216157]
[1748509763969,0.14216157,172.83,172.81,0.14216157]
[1748509766588,5.92844042,172.83,172.81,0.14216157]
[1748509767087,10.0,172.81,172.78,9.56]
[1748509767277,10.0,172.81,172.8,12.27715763]
[1748509769084,10.0,172.81,172.8,12.4193192]
[1748509769283,15.78662889,172.82,172.81,0.14216157]
[1748509769887,10.0,172.82,172.81,12.4193192]
[1748509770990,15.7861316,172.83,172.81,12.4193192]
[1748509771186,10.0,172.85,172.83,0.14216157]
[1748509771492,10.0,172.84,172.83,12.4193192]
[1748509771678,15.78543984,172.85,172.83,12.4193192]
[1748509771999,10.0,172.84,172.79,0.28432314]
[1748509772186,10.0,172.84,172.83,12.4193192]
[1748509772366,15.78513315,172.86,172.84,0.14216157]
[1748509772569,10.0,172.85,172.84,0.14216157]
[1748509775899,10.0,172.86,172.84,0.14216157]
[1748509776122,10.0,172.86,172.84,12.4193192]
[1748509776427,10.0,172.85,172.84,12.4193192]
[1748509777615,10.0,172.85,172.84,0.14216157]
[1748509777998,15.78536303,172.85,172.84,0.14216157]
[1748509783429,5.78536303,172.85,172.84,0.14216157]
[1748509783635,15.78536303,172.85,172.84,0.14216157]
[1748509787237,15.78536303,172.85,172.83,0.14216157]
[1748509787922,15.78569775,172.84,172.83,0.14216157]
[1748509788119,15.78569775,172.84,172.78,9.56]
[1748509788120,10.0,172.83,172.79,34.13255426]
[1748509788323,10.0,172.83,172.81,0.14216157]
[1748509790139,15.78608632,172.83,172.81,0.14216157]
[1748509791231,10.0,172.83,172.82,0.14216157]
[1748509791708,10.0,172.83,172.81,0.14216157]
[1748509792341,15.78614967,172.83,172.81,0.14216157]
[1748509793938,15.78614967,172.83,172.8,0.28432314]
[1748509794232,10.0,172.82,172.8,0.14216157]
[1748509794408,5.78670215,172.81,172.8,0.14216157]
[1748509795517,15.78670215,172.81,172.79,0.14216157]
[1748509795716,10.0,172.8,172.79,0.14216157]
[1748509797151,23.63526815,172.8,172.74,0.42648471]
[1748509797439,23.63526815,172.8,172.77,0.14216157]
[1748509798231,15.78703703,172.8,172.77,0.14216157]
[1748509798438,15.78703703,172.8,172.77,7.99039269]
[1748509799221,15.78703703,172.8,172.76,26.0]
[1748509799222,10.0,172.8,172.79,0.14216157]
[1748509807625,10.0,172.82,172.8,0.14216157]
[1748509807934,10.0,172.81,172.8,0.14216157]
[1748509808135,10.0,172.82,172.8,0.14216157]
[1748509808350,10.0,172.83,172.81,0.14216157]
[1748509808725,10.0,172.82,172.81,0.14216157]
[1748509808931,10.0,172.83,172.81,0.14216157]
[1748509809246,10.0,172.82,172.79,8.27471583]
[1748509809651,10.0,172.82,172.79,8.13255426]
[1748509809951,10.0,172.82,172.79,7.99039269]
[1748509810252,17.84823112,172.82,172.8,0.14216157]
[1748509810436,10.0,172.82,172.8,0.14216157]
[1748509811248,10.0,172.8,172.79,0.14216157]
[1748509812158,10.0,172.8,172.78,0.28432314]
[1748509813058,10.0,172.8,172.78,8.13255426]
[1748509813462,10.0,172.81,172.8,0.14216157]
[1748509813638,10.0,172.82,172.8,0.28432314]
[1748509813864,10.0,172.84,172.82,0.14216157]
[1748509814168,10.0,172.84,172.82,7.99039269]
[1748509814369,157.3,172.85,172.82,7.99039269]
[1748509814545,10.0,172.85,172.82,7.99039269]
[1748509814875,10.0,172.83,172.82,8.13255426]
[1748509815155,10.0,172.85,172.82,8.13255426]
[1748509815963,10.0,172.85,172.83,0.14216157]
[1748509816151,10.0,172.84,172.83,0.14216157]
[1748509816342,10.0,172.85,172.83,0.14216157]
[1748509818039,10.0,172.84,172.83,0.14216157]
[1748509818359,10.0,172.85,172.83,0.14216157]
[1748509818667,10.0,172.83,172.82,0.14216157]
[1748509820441,28.04956173,172.85,172.82,0.14216157]
[1748509820764,10.0,172.83,172.82,0.14216157]
[1748509821151,10.0,172.84,172.82,0.14216157]
[1748509821468,10.0,172.84,172.82,0.28432314]
[1748509821645,15.78546676,172.85,172.82,0.28432314]
[1748509821845,10.0,172.84,172.82,0.28432314]
[1748509822365,10.0,172.85,172.82,0.28432314]
[1748509823274,15.78504838,172.86,172.83,0.14216157]
[1748509823462,10.0,172.84,172.83,0.14216157]
[1748509825672,10.0,172.84,172.82,0.28432314]
[1748509827470,15.78537488,172.85,172.82,0.28432314]
[1748509827673,10.0,172.84,172.82,0.28432314]
[1748509828051,10.0,172.85,172.82,0.28432314]
[1748509828374,10.0,172.85,172.83,0.14216157]
[1748509829269,10.0,172.85,172.84,0.14216157]
[1748509830058,10.0,172.85,172.83,0.14216157]
[1748509830366,10.0,172.84,172.83,0.14216157]
[1748509830547,10.0,172.85,172.83,0.14216157]
[1748509830748,10.0,172.84,172.83,0.14216157]
[1748509831267,10.0,172.85,172.83,0.14216157]
[1748509831666,10.0,172.84,172.83,0.14216157]
[1748509832053,15.78513968,172.86,172.83,0.14216157]
[1748509832861,10.0,172.85,172.83,0.14216157]
[1748509833486,10.0,172.88,172.84,12.40625654]
[1748509833785,147.3,172.9,172.88,0.14216157]
[1748509833977,10.0,172.89,172.88,0.14216157]
[1748509834152,10.0,172.89,172.86,0.14216157]
[1748509834363,10.0,172.87,172.86,0.14216157]
[1748509835964,5.78438773,172.88,172.85,8.13055471]
[1748509836165,10.0,172.87,172.85,8.13055471]
[1748509836959,10.0,172.87,172.85,0.28432314]
[1748509837370,15.78479456,172.87,172.85,0.14216157]
[1748509837800,10.0,172.87,172.85,0.14216157]
[1748509838384,10.0,172.87,172.86,0.14216157]
[1748509838573,10.0,172.88,172.86,0.14216157]
[1748509838884,10.0,172.87,172.86,0.14216157]
[1748509842607,5.78436895,172.88,172.86,0.14216157]
[1748509842802,10.0,172.87,172.86,0.14216157]
[1748509842978,10.0,172.87,172.85,0.28432314]
[1748509843866,15.78479331,172.87,172.85,0.14216157]
[1748509845103,10.0,172.86,172.83,0.14216157]
[1748509845466,13.63102488,172.87,172.83,0.14216157]
[1748509845467,23.63102488,172.87,172.83,0.14216157]
[1748509845789,10.0,172.86,172.83,0.14216157]
[1748509846114,10.0,172.87,172.85,0.14216157]
[1748509846399,10.0,172.86,172.85,7.98839314]
[1748509848073,5.78444828,172.88,172.85,12.68626781]
[1748509848074,10.0,172.88,172.85,12.68626781]
[1748509848278,10.0,172.91,172.88,0.14216157]
[1748509848576,10.0,172.9,172.88,0.14216157]
[1748509848882,10.0,172.91,172.88,0.14216157]
[1748509849185,10.0,172.9,172.88,0.14216157]
[1748509850390,10.0,172.89,172.88,0.14216157]
[1748509850692,10.0,172.9,172.88,0.14216157]
[1748509851365,1.6127,172.93,172.9,0.14216157]
[1748509851573,10.0,172.91,172.9,0.14216157]
[1748509852005,10.0,172.92,172.89,0.28432314]
[1748509852170,10.0,172.91,172.89,0.28432314]
[1748509852574,10.0,172.91,172.87,0.42648471]
[1748509852823,10.0,172.91,172.87,12.68626781]
[1748509853096,10.0,172.91,172.87,0.28432314]
[1748509853097,10.0,172.89,172.87,0.28432314]
[1748509854873,15.78369159,172.9,172.87,0.28432314]
[1748509855204,10.0,172.89,172.87,0.28432314]
[1748509855413,10.0,172.89,172.87,0.14216157]
[1748509855602,10.0,172.87,172.86,0.14216157]
[1748509855905,22.2597831,172.87,172.86,0.14216157]
[1748509856311,10.0,172.85,172.83,0.14216157]
[1748509856894,15.78543584,172.85,172.82,0.28432314]
[1748509857600,10.0,172.85,172.82,0.28432314]
[1748509857987,28.04521199,172.85,172.82,0.14216157]
[1748509858782,10.0,172.85,172.82,0.14216157]
[1748509859881,10.0,172.85,172.82,38.40194467]
[1748509860397,10.0,172.86,172.84,0.14216157]
[1748509860912,12.2597831,172.88,172.86,0.42648471]
[1748509860913,10.0,172.88,172.86,0.42648471]
[1748509861099,10.0,172.88,172.87,12.54410624]
[1748509861406,10.0,172.88,172.87,0.28432314]
[1748509862391,10.0,172.88,172.87,0.14216157]
[1748509863081,10.0,172.89,172.88,0.14216157]
[1748509863712,10.0,172.89,172.87,12.40194467]
[1748509863890,10.0,172.9,172.87,12.40194467]
[1748509864985,10.0,172.89,172.87,12.40194467]
[1748509867607,10.0,172.89,172.88,0.14216157]
[1748509867855,10.0,172.92,172.89,0.28432314]
[1748509868127,22.2597831,172.95,172.89,0.28432314]
[1748509868297,10.0,172.95,172.92,12.54410624]
[1748509868484,10.0,172.96,172.92,12.54410624]
[1748509868810,10.0,172.95,172.94,12.40194467]
[1748509868993,10.0,172.98,172.94,12.54410624]
[1748509869617,10.0,172.97,172.94,12.54410624]
[1748509869787,10.0,172.98,172.94,12.54410624]
[1748509870114,10.0,172.97,172.94,12.54410624]
[1748509870294,10.0,172.95,172.94,0.14216157]
[1748509870507,10.0,172.95,172.93,0.14216157]
[1748509871316,10.0,172.96,172.95,0.14216157]
[1748509872335,10.0,172.98,172.95,0.14216157]
[1748509872823,10.0,172.99,172.98,0.14216157]
[1748509874220,5.78010049,173.01,172.98,0.14216157]
[1748509874221,10.0,173.01,172.99,0.14216157]
[1748509874521,10.0,173.0,172.99,12.54410624]
[1748509874718,10.0,173.0,172.99,0.28432314]
[1748509875309,10.0,173.0,172.99,0.14216157]
[1748509876520,15.78034682,173.0,172.99,0.14216157]
[1748509877099,28.18229149,173.0,172.99,0.14216157]
[1748509880124,10.0,173.0,172.99,0.14216157]
[1748509881621,28.04012992,173.0,172.99,0.14216157]
[1748509882323,15.78034682,173.0,172.99,0.14216157]
[1748509882506,10.0,173.0,172.99,0.14216157]
[1748509883119,10.0,173.02,173.0,0.28432314]
[1748509883319,10.0,173.02,173.01,12.40194467]
[1748509883707,10.0,173.03,173.02,0.28432314]
[1748509884038,10.0,173.05,173.02,12.54410624]
[1748509884242,10.0,173.05,173.04,0.14216157]
[1748509884704,10.0,173.06,173.05,0.14216157]
[1748509886331,10.0,173.05,173.04,0.28432314]
[1748509886635,22.2597831,173.05,173.04,0.14216157]
[1748509886827,10.0,173.05,173.02,0.14216157]
[1748509887429,10.0,173.05,173.03,0.14216157]
[1748509887645,10.0,173.05,173.03,0.28432314]
[1748509887984,10.0,173.04,173.03,0.28432314]
[1748509890642,10.0,173.04,173.02,0.28432314]
[1748509890943,15.7787065,173.05,173.02,0.28432314]
[1748509891131,10.0,173.04,173.02,0.28432314]
[1748509891722,10.0,173.04,173.01,0.28432314]
[1748509893161,10.0,173.04,173.02,0.14216157]
[1748509894048,15.7787065,173.05,173.02,0.14216157]
[1748509894232,5.77901754,173.04,173.02,0.14216157]
[1748509894546,15.77901754,173.04,173.02,0.14216157]
[1748509895548,15.77901754,173.04,173.0,12.68626781]
[1748509895759,10.0,173.04,173.03,0.28432314]
[1748509896421,10.0,173.05,173.04,0.14216157]
[1748509897453,10.0,173.05,173.03,0.28432314]
[1748509897656,10.0,173.04,173.03,0.28432314]
[1748509898149,10.0,173.05,173.03,0.28432314]
[1748509898514,10.0,173.04,173.03,0.28432314]
[1748509899150,10.0,173.06,173.03,0.14216157]
[1748509899455,10.0,173.07,173.06,0.14216157]
[1748509899827,10.0,173.05,173.04,0.42648471]
[1748509900037,10.0,173.07,173.04,0.42648471]
[1748509900350,22.2597831,173.05,173.02,0.42648471]
[1748509900552,10.0,173.05,173.02,0.42648471]
[1748509900753,10.0,173.05,173.02,12.68626781]
[1748509902748,10.0,173.05,173.02,0.42648471]
[1748509903142,18.03820233,173.06,173.02,0.42648471]
[1748509903327,10.0,173.05,173.02,0.42648471]
[1748509904255,15.77877549,173.05,173.02,0.42648471]
[1748509904462,10.0,173.08,173.02,0.42648471]
[1748509904770,10.0,173.08,173.05,0.28432314]
[1748509904926,15.77739447,173.09,173.05,0.28432314]
[1748509905136,28.03717757,173.09,173.05,0.28432314]
[1748509905652,10.0,173.08,173.06,0.14216157]
[1748509905867,157.3,173.12,173.08,0.28432314]
[1748509906157,1.6435,173.13,173.08,0.28432314]
[1748509906158,17.41958535,173.13,173.08,12.54410624]
[1748509906454,28.03586845,173.13,173.08,12.54410624]
[1748509906655,15.77608535,173.13,173.08,12.54410624]
[1748509906951,10.0,173.12,173.11,0.14216157]
[1748509907371,15.77572017,173.14,173.11,0.14216157]
[1748509907579,10.0,173.12,173.1,0.14216157]
[1748509907726,10.0,173.11,173.1,0.14216157]
[1748509908070,10.0,173.11,173.09,0.14216157]
[1748509908368,10.0,173.12,173.09,12.40194467]
[1748509908557,10.0,173.11,173.09,0.28432314]
[1748509908760,19.44,173.15,173.09,0.14216157]
[1748509909062,9.44,173.15,173.12,0.28432314]
[1748509909661,10.0,173.14,173.12,0.28432314]
[1748509910150,21.6997831,173.15,173.12,0.28432314]
[1748509910342,31.6997831,173.15,173.12,0.28432314]
[1748509910727,21.6997831,173.15,173.12,0.14216157]
[1748509910949,12.2597831,173.13,173.11,0.14216157]
[1748509911330,21.6997831,173.15,173.1,12.68626781]
[1748509911730,9.44,173.15,173.12,0.42648471]
[1748509911932,19.44,173.15,173.12,0.42648471]
[1748509912683,9.44,173.15,173.12,0.42648471]
[1748509913636,19.44,173.15,173.12,0.42648471]
[1748509914039,22.2597831,173.14,173.1,0.42648471]
[1748509914241,22.2597831,173.14,173.1,0.14216157]
[1748509914242,12.2597831,173.13,173.1,0.14216157]
[1748509914552,28.03621438,173.12,173.08,26.14216157]
[1748509914758,10.0,173.12,173.09,0.28432314]
[1748509914962,10.0,173.12,173.09,0.14216157]
[1748509915145,28.03613482,173.12,173.09,0.28432314]
[1748509915348,28.00342489,173.12,173.09,0.28432314]
[1748509915542,12.22707317,173.1,173.08,26.14216157]
[1748509915854,12.22707317,173.09,173.07,0.14216157]
[1748509916051,12.22707317,173.09,173.07,0.42648471]
[1748509916830,12.22707317,173.09,173.07,0.28432314]
[1748509917236,12.22707317,173.1,173.07,0.42648471]
[1748509918365,12.22707317,173.1,173.06,0.42648471]
[1748509918949,12.22707317,173.09,173.06,0.42648471]
[1748509919147,10.0,173.11,173.06,0.42648471]
[1748509919469,12.22707317,173.1,173.06,0.42648471]
[1748509922162,12.22707317,173.09,173.06,0.42648471]
[1748509922347,12.22707317,173.1,173.06,0.42648471]
[1748509922543,10.0,173.11,173.06,0.42648471]
[1748509922748,12.22707317,173.1,173.06,0.42648471]
[1748509925277,10.0,173.14,173.09,0.42648471]
[1748509925567,22.22707317,173.12,173.09,0.42648471]
[1748509925774,22.22707317,173.12,173.09,0.14216157]
[1748509926075,12.22707317,173.11,173.07,0.42648471]
[1748509927076,10.0,173.12,173.07,0.42648471]
[1748509927367,12.22707317,173.1,173.07,0.42648471]
[1748509929161,22.22707317,173.11,173.07,0.42648471]
[1748509929775,10.0,173.1,173.06,0.42648471]
[1748509929963,10.0,173.1,173.06,6.20478372]
[1748509933286,10.0,173.12,173.06,6.20478372]
[1748509933656,10.0,173.11,173.06,6.20478372]
[1748509933861,10.0,173.12,173.06,6.20478372]
[1748509934071,10.0,173.13,173.06,24.85443258]
[1748509934389,22.22707317,173.14,173.06,24.85443258]
[1748509935281,10.0,173.13,173.06,24.85443258]
[1748509935479,22.22707317,173.12,173.06,24.85443258]
[1748509935779,10.0,173.11,173.06,24.85443258]
[1748509936671,22.22707317,173.11,173.06,0.42648471]
[1748509936874,10.0,173.1,173.06,0.28432314]
[1748509937088,22.22707317,173.11,173.06,0.28432314]
[1748509937264,10.0,173.1,173.06,0.42648471]
[1748509937686,22.22707317,173.11,173.06,0.42648471]
[1748509938088,10.0,173.1,173.06,0.42648471]
[1748509941682,10.0,173.1,173.06,6.20480191]
[1748509942287,10.0,173.14,173.09,0.42648471]
[1748509942592,10.0,173.13,173.09,0.42648471]
[1748509942792,22.22707317,173.13,173.09,0.28432314]
[1748509943000,22.22707317,173.12,173.09,0.28432314]
[1748509943294,10.0,173.11,173.09,0.28432314]
[1748509944907,10.0,173.11,173.07,0.14216157]
[1748509945087,22.22707317,173.1,173.06,0.42648471]
[1748509945387,10.0,173.1,173.06,0.42648471]
[1748509945582,22.22707317,173.1,173.06,0.42648471]
[1748509945779,10.0,173.1,173.06,6.20479588]
[1748509946372,10.0,173.11,173.06,6.20479588]
[1748509946576,10.0,173.1,173.06,6.20479588]
[1748509950996,10.0,173.1,173.06,0.42648471]
[1748509953493,22.22707317,173.11,173.06,0.42648471]
[1748509953685,10.0,173.1,173.06,6.20479138]
[1748509956797,10.0,173.1,173.06,0.42648471]
[1748509957777,12.22707317,173.09,173.06,0.14216157]
[1748509958094,22.22707317,173.07,173.06,0.14216157]
[1748509958416,22.22707317,173.07,173.02,0.42648471]
[1748509958591,12.22707317,173.06,173.02,0.42648471]
[1748509958793,12.22707317,173.06,173.02,0.14216157]
[1748509959211,22.22707317,173.06,173.02,0.42648471]
[1748509959388,10.0,173.05,173.02,0.42648471]
[1748509959707,22.22707317,173.06,173.02,0.28432314]
[1748509959911,10.0,173.05,173.02,0.42648471]
[1748509961609,10.0,173.05,173.02,0.28432314]
[1748509962201,10.0,173.05,173.02,0.42648471]
[1748509963284,22.22707317,173.05,173.02,0.42648471]
[1748509963490,10.0,173.04,173.02,0.14216157]
[1748509965327,10.0,173.04,173.0,6.20676749]
[1748509965496,10.0,173.04,173.0,9.10141087]
[1748509968028,10.0,173.05,173.0,9.10141087]
[1748509968525,10.0,173.06,173.0,9.10141087]
[1748509969525,10.0,173.07,173.02,0.42648471]
[1748509970628,31.64707317,173.08,173.04,0.14216157]
[1748509970917,19.42,173.08,173.04,0.42648471]
[1748509971942,19.42,173.08,173.05,0.14216157]
[1748509973230,10.0,173.08,173.05,0.14216157]
[1748509973733,10.0,173.07,173.05,0.14216157]
[1748509974039,22.22707317,173.08,173.05,0.14216157]
[1748509976158,10.0,173.07,173.05,0.14216157]
[1748509976839,10.0,173.07,173.03,6.20575088]
[1748509979028,22.22707317,173.08,173.03,6.20575088]
[1748509979343,10.0,173.07,173.03,0.42648471]
[1748509979649,10.0,173.11,173.06,26.0]
[1748509979854,10.0,173.12,173.07,0.42648471]
[1748509980148,12.22707317,173.09,173.07,0.42648471]
[1748509980532,22.22707317,173.1,173.07,0.42648471]
[1748509980853,10.0,173.1,173.07,0.42648471]
[1748509981739,12.22707317,173.12,173.07,6.20429848]
[1748509981740,10.0,173.12,173.07,6.20429848]
[1748509982053,10.0,173.11,173.07,6.20429848]
[1748509982246,157.3,173.13,173.07,6.20429848]
[1748509982464,10.0,173.12,173.07,6.20429848]
[1748509983729,22.22707317,173.12,173.07,6.20429848]
[1748509986326,10.0,173.12,173.07,6.20429848]
[1748509986529,22.22707317,173.12,173.07,6.20429848]
[1748509988365,22.22707317,173.13,173.07,6.20429848]
[1748509989031,10.0,173.12,173.07,6.20429848]
[1748509994463,17.82380543,173.13,173.07,6.20429848]
[1748509994659,10.0,173.12,173.07,6.20429848]
[1748509995662,10.0,173.14,173.07,6.20429848]
[1748509995864,10.0,173.13,173.07,6.20429848]
[1748509996066,10.0,173.12,173.07,6.20429848]
[1748509996252,10.0,173.13,173.07,6.20429848]